bitfinex/quotes_ETHUSD_20260304
["timestamp","ask_amount","ask_price","bid_price","bid_amount"]
[1772611866832,7.74863551,2016.3,2015.3,6.40487769]
[1772611867315,7.74863551,2016.3,2015.3,0.001]
[1772611867316,5.99363551,2016.2,2015.3,0.001]
[1772611868745,1.754,2016.1,2015.3,6.40487769]
[1772611869144,7.74763551,2016.1,2015.3,0.001]
[1772611869855,5.99363551,2016.0,2015.5,0.001]
[1772611870155,1.753,2015.9,2015.5,0.001]
[1772611871146,5.99363551,2015.8,2015.3,0.001]
[1772611872550,5.99363551,2015.6,2015.3,0.001]
[1772611872744,5.99363551,2015.6,2015.1,0.001]
[1772611874665,3.89317653,2015.9,2014.6,0.001]
[1772611874666,7.22291789,2015.3,2014.6,0.001]
[1772611874961,1.751,2015.2,2014.6,0.001]
[1772611875960,7.74463551,2015.2,2014.6,0.001]
[1772611876158,1.22928238,2014.8,2014.1,0.001]
[1772611876365,1.751,2015.2,2014.1,0.001]
[1772611876366,7.22291789,2014.6,2014.1,0.001]
[1772611876676,7.74463551,2014.5,2014.1,0.001]
[1772611876965,7.22291789,2014.2,2013.5,0.001]
[1772611877264,5.99363551,2014.2,2013.5,0.001]
[1772611879460,5.85679662,2014.0,2013.5,0.001]
[1772611880180,7.086079,2014.3,2013.5,0.001]
[1772611880353,1.75,2014.1,2013.5,6.12676519]
[1772611881170,6.37482971,2014.9,2013.7,1.22928238]
[1772611881334,2.45856476,2015.5,2013.5,1.24260639]
[1772611881335,1.75,2014.5,2013.9,7.62444286]
[1772611881558,1.75,2014.6,2013.9,7.62444286]
[1772611882244,1.75,2014.6,2013.5,1.24260639]
[1772611882440,16.25859659,2013.6,2012.5,0.001]
[1772611882665,8.83339447,2013.0,2012.3,0.001]
[1772611882872,0.065536,2013.0,2012.3,0.001]
[1772611883098,6.37482971,2013.4,2012.3,0.001]
[1772611883366,1.739,2012.9,2012.3,0.001]
[1772611883568,1.22928238,2012.8,2012.3,0.001]
[1772611883778,1.739,2012.9,2011.7,2.67516048]
[1772611884069,1.739,2012.9,2010.0,3.20442045]
[1772611884070,7.60411209,2012.5,2010.7,7.63850792]
[1772611884269,1.22928238,2012.0,2010.7,7.6385022]
[1772611884469,1.31851036,2012.4,2011.0,7.62444286]
[1772611884672,1.31851036,2012.4,2011.0,6.39516048]
[1772611885039,1.31851036,2012.4,2011.2,6.39516048]
[1772611885657,1.31851036,2012.4,2011.4,6.39516048]
[1772611887479,1.31851036,2012.4,2011.4,7.63806063]
[1772611887675,1.31851036,2012.4,2011.4,6.39516048]
[1772611888382,1.31851036,2012.4,2010.9,4.97285146]
[1772611888383,6.37482971,2012.3,2010.3,0.065536]
[1772611888677,1.31851036,2012.4,2010.4,6.39516048]
[1772611888678,6.37482971,2011.9,2010.4,6.39516048]
[1772611888881,1.28157171,2011.8,2010.4,6.39516048]
[1772611889095,7.65640142,2011.8,2010.2,1.89468026]
[1772611889373,7.83640142,2011.7,2010.2,1.89468026]
[1772611889592,2.55534881,2011.9,2010.2,1.89468026]
[1772611889593,7.83640142,2011.6,2010.2,1.89468026]
[1772611889748,1.46157171,2011.5,2010.2,1.89468026]
[1772611889943,7.83640142,2011.5,2010.2,1.89468026]
[1772611890152,1.46157171,2011.4,2010.2,1.89468026]
[1772611890364,1.46157171,2011.4,2010.3,6.39516048]
[1772611891178,1.46157171,2011.4,2010.3,7.6387124]
[1772611891376,1.46157171,2011.4,2010.3,6.39516048]
[1772611891679,1.46157171,2011.4,2010.3,7.63874674]
[1772611892188,1.46157171,2011.4,2010.3,7.63874712]
[1772611892476,1.46157171,2011.4,2010.3,6.39516048]
[1772611892656,1.46157171,2011.4,2010.3,7.63874883]
[1772611892987,1.36268142,2011.4,2010.5,6.39516048]
[1772611893289,2.55534881,2012.4,2010.8,6.39516048]
[1772611893448,6.37482971,2012.3,2010.8,6.39516048]
[1772611894054,6.37482971,2012.3,2010.8,7.96816048]
[1772611895055,6.37482971,2012.3,2011.0,0.001]
[1772611895476,6.37482971,2012.3,2011.0,6.39616048]
[1772611897496,6.37482971,2012.3,2011.0,7.63928782]
[1772611898564,8.93017852,2012.4,2011.1,7.97116048]
[1772611898766,6.37482971,2012.8,2011.1,7.97116048]
[1772611899076,6.37482971,2012.8,2011.4,6.39516048]
[1772611899285,2.55534881,2012.9,2011.7,6.39516048]
[1772611899666,2.55534881,2012.9,2011.8,1.24266825]
[1772611900368,6.37482971,2013.1,2011.8,1.24266825]
[1772611900563,6.37482971,2013.1,2011.7,9.21384483]
[1772611900759,6.37482971,2013.5,2011.9,1.66108913]
[1772611900992,6.37482971,2013.5,2012.0,6.39516048]
[1772611901695,6.37482971,2013.5,2012.1,2.81948297]
[1772611901895,6.37482971,2013.5,2012.0,1.577]
[1772611902264,6.37482971,2013.5,2012.0,7.97216048]
[1772611902684,0.065536,2013.4,2012.0,6.39516048]
[1772611902994,6.37482971,2013.3,2012.0,6.39516048]
[1772611903468,6.37482971,2013.3,2012.0,7.97216048]
[1772611903785,6.37482971,2013.3,2012.1,9.21464345]
[1772611904193,6.37482971,2013.3,2012.1,7.63764345]
[1772611904389,6.37482971,2013.2,2011.7,7.6378786]
[1772611904592,6.37482971,2013.1,2011.7,7.6378786]
[1772611904789,1.72927435,2013.2,2011.7,6.39516048]
[1772611904790,6.37482971,2012.9,2011.7,6.39516048]
[1772611904988,6.37482971,2012.9,2011.7,7.63788964]
[1772611905369,6.37482971,2012.9,2011.7,6.39516048]
[1772611905898,6.37482971,2012.9,2011.7,7.63788963]
[1772611906097,6.37482971,2012.9,2011.7,7.63787549]
[1772611906262,6.37482971,2012.9,2011.7,6.39516048]
[1772611906471,6.37482971,2012.7,2011.4,2.81990287]
[1772611906903,6.37482971,2012.7,2011.4,9.21506335]
[1772611907080,6.37482971,2012.7,2011.4,7.63806335]
[1772611907397,6.37482971,2012.7,2011.4,9.21506335]
[1772611908303,6.37482971,2012.7,2011.4,6.39516048]
[1772611908464,6.37482971,2012.7,2011.3,1.24297013]
[1772611908465,5.94044384,2012.5,2011.3,1.24297013]
[1772611908775,1.73127435,2012.7,2011.0,6.26121753]
[1772611908776,5.94044384,2012.3,2011.0,6.26121753]
[1772611909096,5.94044384,2012.3,2011.0,7.50437479]
[1772611909473,5.94044384,2012.1,2011.0,0.001]
[1772611909800,5.94044384,2011.9,2011.0,0.001]
[1772611910360,4.08565737,2012.2,2011.0,0.001]
[1772611910361,5.94044384,2011.7,2011.0,0.001]
[1772611911098,5.94044384,2012.3,2011.1,6.26021753]
[1772611911299,2.95388834,2012.2,2011.1,6.26021753]
[1772611911675,8.89433218,2012.2,2011.1,6.26021753]
[1772611911866,2.95388834,2012.1,2011.1,6.26021753]
[1772611912195,2.95388834,2012.1,2011.1,7.503298]
[1772611912402,2.95388834,2012.1,2011.1,6.26021753]
[1772611912799,2.95388834,2012.1,2011.1,7.50330886]
[1772611913395,2.95388834,2012.1,2011.3,1.72927435]
[1772611913597,2.95388834,2012.1,2011.1,7.50330886]
[1772611913783,2.95388834,2012.0,2011.1,9.08030886]
[1772611913985,8.29682686,2012.4,2011.1,9.08030886]
[1772611914306,5.94044384,2012.2,2011.0,0.001]
[1772611914484,8.90120098,2012.1,2011.0,1.24416118]
[1772611914680,2.96120115,2012.0,2011.0,1.24416118]
[1772611915205,4.36481539,2012.7,2011.0,1.24416118]
[1772611915206,2.35838302,2012.7,2011.7,6.26021753]
[1772611915394,5.94244384,2012.7,2011.5,1.72927435]
[1772611915591,5.94244384,2012.7,2011.5,3.30627435]
[1772611916111,5.94244384,2012.7,2011.4,6.26021753]
[1772611916282,5.94244384,2012.7,2011.4,7.83721753]
[1772611916482,5.94244384,2012.7,2011.1,6.26021753]
[1772611916680,5.94244384,2012.7,2011.0,1.24415772]
[1772611916681,5.94044384,2012.4,2011.0,1.24415772]
[1772611916894,1.0,2011.1,2011.0,1.24415772]
[1772611917088,5.94044384,2012.1,2011.0,1.24415772]
[1772611917290,5.94044384,2012.1,2011.0,0.001]
[1772611917686,5.94044384,2011.8,2011.0,0.001]
[1772611918429,5.94044384,2011.8,2010.8,0.001]
[1772611918430,7.66971819,2011.2,2010.8,0.001]
[1772611918716,5.94044384,2011.2,2010.8,0.001]
[1772611918882,5.94044384,2011.5,2010.8,0.001]
[1772611919884,3.53457453,2011.9,2010.8,0.001]
[1772611919885,5.94044384,2011.9,2010.8,0.001]
[1772611920410,5.94044384,2011.9,2010.8,7.50445007]
[1772611921618,5.94044384,2011.9,2011.0,0.001]
[1772611921998,0.002,2012.1,2011.0,0.001]
[1772611922195,5.94044384,2012.0,2011.0,0.001]
[1772611924199,5.94044384,2011.8,2011.0,0.001]
[1772611924713,5.94044384,2011.7,2011.0,0.001]
[1772611925018,0.002,2012.1,2011.1,6.26021753]
[1772611925314,5.94244384,2012.1,2011.0,0.001]
[1772611925919,5.94044384,2012.0,2011.0,0.001]
[1772611926217,5.94044384,2011.9,2011.3,4.31211417]
[1772611926388,5.94044384,2011.9,2011.0,0.001]
[1772611927285,5.94044384,2011.6,2011.0,0.001]
[1772611928522,0.065536,2011.8,2010.8,0.001]
[1772611928523,5.94044384,2011.4,2010.8,0.001]
[1772611928692,5.94044384,2011.4,2010.5,0.001]
[1772611929999,5.94044384,2011.2,2010.5,0.001]
[1772611930198,5.94044384,2011.1,2010.5,0.001]
[1772611931598,5.94044384,2011.4,2010.5,0.001]
[1772611932495,5.94044384,2011.2,2010.5,0.001]
[1772611934006,5.94044384,2011.2,2010.7,0.001]
[1772611936207,5.94044384,2011.2,2010.1,1.29]
[1772611939526,0.065536,2011.3,2010.1,1.29]
[1772611939527,6.43253347,2011.0,2010.1,1.29]
[1772611940425,0.065536,2011.3,2010.2,5.9094994]
[1772611940426,5.99569425,2011.3,2010.2,5.9094994]
[1772611940813,5.99569425,2011.3,2010.2,7.15311052]
[1772611941016,5.99569425,2011.3,2010.2,7.15313755]
[1772611941533,0.065536,2011.6,2010.2,7.15313755]
[1772611941534,5.99569425,2011.6,2010.2,7.15313755]
[1772611942408,5.99569425,2011.6,2010.4,5.9094994]
[1772611942815,6.06323025,2011.8,2010.7,5.9094994]
[1772611943631,6.06323025,2011.8,2010.3,7.15306799]
[1772611944310,6.06323025,2011.8,2010.6,5.9094994]
[1772611945039,6.06323025,2011.8,2010.7,5.9094994]
[1772611945410,6.06323025,2011.8,2010.5,7.15291498]
[1772611945713,6.06323025,2011.8,2010.2,5.9094994]
[1772611945714,5.99569425,2011.5,2010.2,5.9094994]
[1772611946610,5.99569425,2011.5,2010.2,7.14646056]
[1772611946813,5.99569425,2011.5,2010.4,7.14646056]
[1772611947431,5.99569425,2011.5,2010.5,5.9094994]
[1772611947737,0.002,2011.3,2010.5,5.9094994]
[1772611948033,5.99769425,2011.3,2010.3,0.001]
[1772611948340,5.99769425,2011.3,2010.3,1.24459478]
[1772611948636,0.002,2011.3,2010.4,5.9094994]
[1772611949218,0.002,2011.3,2010.5,1.24347177]
[1772611949644,0.002,2011.3,2010.5,5.9094994]
[1772611951053,5.99769425,2011.3,2010.3,0.001]
[1772611951232,1.0,2010.6,2010.3,0.001]
[1772611951953,5.99769425,2011.3,2010.3,0.001]
[1772611952817,5.99769425,2011.3,2010.4,7.14646056]
[1772611953326,5.99769425,2011.3,2010.4,5.9094994]
[1772611954420,5.99769425,2011.3,2010.3,0.001]
[1772611954618,5.99769425,2011.3,2010.3,7.15409238]
[1772611955630,5.99769425,2011.3,2010.3,5.9104994]
[1772611955830,5.99769425,2011.3,2010.3,7.15409259]
[1772611956238,5.99769425,2011.3,2010.3,5.9104994]
[1772611957747,5.99769425,2011.3,2010.3,7.15408783]
[1772611958247,5.99769425,2011.3,2010.3,7.15408808]
[1772611958549,5.99769425,2011.3,2010.3,5.9104994]
[1772611959123,5.99769425,2011.3,2010.3,0.001]
[1772611959449,7.23465541,2011.3,2010.3,0.001]
[1772611960453,0.002,2011.3,2010.5,6.80717966]
[1772611960653,5.99769425,2011.3,2010.5,5.9094994]
[1772611961842,5.99769425,2011.3,2010.5,5.9104994]
[1772611962145,0.002,2011.1,2010.5,5.9104994]
[1772611962450,0.002,2011.1,2010.5,0.001]
[1772611963258,5.99769425,2011.1,2010.5,0.001]
[1772611964052,0.002,2011.1,2010.5,5.9104994]
[1772611964421,5.99769425,2011.1,2010.5,0.001]
[1772611967524,0.002,2011.1,2010.5,0.001]
[1772611967751,0.002,2011.1,2010.5,5.9104994]
[1772611968451,0.002,2011.1,2010.5,0.001]
[1772611968452,5.90365514,2011.1,2010.5,0.001]
[1772611969852,0.002,2011.5,2010.9,1.23696116]
[1772611970159,0.002,2011.5,2010.6,6.32087649]
[1772611970160,0.002,2011.4,2010.6,6.32087649]
[1772611970539,5.90365514,2011.3,2010.6,6.32087649]
[1772611971055,5.90365514,2011.3,2010.6,7.56428577]
[1772611971357,5.90365514,2011.3,2010.5,0.001]
[1772611971358,0.002,2011.2,2010.5,0.001]
[1772611971523,0.002,2011.1,2010.5,0.001]
[1772611972157,0.002,2011.0,2010.5,0.001]
[1772611972361,5.90165514,2011.1,2010.5,0.001]
[1772611972544,0.002,2011.0,2010.5,0.001]
[1772611975481,7.1406163,2011.0,2010.3,0.001]
[1772611975659,2.97242943,2010.9,2010.3,0.001]
[1772611975978,1.23896116,2011.0,2010.1,1.29]
[1772611975979,5.90165514,2010.8,2010.1,1.29]
[1772611976177,5.90165514,2010.5,2009.0,7.1253865]
[1772611976422,5.90165514,2010.2,2009.2,1.23696116]
[1772611976677,5.90165514,2010.2,2010.1,0.25]
[1772611977049,5.90165514,2010.2,2009.2,8.80207108]
[1772611977250,0.002,2010.1,2009.2,7.55783765]
[1772611977688,0.002,2010.1,2009.2,8.80209774]
[1772611977854,0.002,2010.1,2009.2,7.55783765]
[1772611978056,0.002,2010.1,2009.2,8.80210626]
[1772611978286,0.002,2010.1,2009.2,7.55783765]
[1772611978464,0.002,2010.0,2009.4,7.55783765]
[1772611978774,5.90365514,2010.3,2009.4,7.55783765]
[1772611978947,5.90365514,2010.3,2009.4,6.32087649]
[1772611979563,5.90365514,2010.3,2009.1,7.56517169]
[1772611979564,5.90165514,2010.3,2009.1,7.56517169]
[1772611979763,5.90165514,2010.1,2009.1,6.32087649]
[1772611980201,7.1386163,2010.1,2009.0,0.80451001]
[1772611980367,5.90165514,2009.9,2009.0,0.80451001]
[1772611981063,5.90165514,2009.7,2009.0,0.80451001]
[1772611981260,5.90165514,2009.5,2009.0,0.80451001]
[1772611981660,5.90165514,2009.4,2008.1,7.56579902]
[1772611981861,5.90365514,2009.4,2008.1,7.56579902]
[1772611982062,0.002,2009.3,2008.2,1.23696116]
[1772611982308,5.90165514,2009.2,2008.2,1.23696116]
[1772611982512,5.90365514,2009.2,2008.1,6.32087649]
[1772611982816,0.002,2009.1,2008.3,7.55783765]
[1772611982993,0.002,2009.4,2008.5,7.55783765]
[1772611983298,0.002,2009.4,2008.5,6.32087649]
[1772611983299,5.90365514,2009.4,2008.5,6.32087649]
[1772611983497,0.002,2009.3,2008.5,6.32087649]
[1772611983678,0.002,2009.3,2008.5,7.55783765]
[1772611984273,0.002,2009.2,2008.3,1.23696116]
[1772611984600,0.002,2009.2,2008.3,7.55783765]
[1772611984774,0.002,2009.1,2008.7,1.23696116]
[1772611985104,5.90165514,2009.6,2008.6,6.32087649]
[1772611985401,5.90165514,2009.6,2008.5,1.23696116]
[1772611985577,5.90165514,2009.4,2008.5,2.48166649]
[1772611986184,0.4628535,2009.3,2008.5,2.48166649]
[1772611986394,0.002,2009.7,2008.7,1.23696116]
[1772611986395,2.36804398,2008.8,2008.7,1.23696116]
[1772611986700,3.53457453,2009.8,2008.8,6.32087649]
[1772611986994,2.96214939,2009.7,2009.0,7.55783765]
[1772611987193,2.96214939,2009.6,2009.0,7.55783765]
[1772611987380,2.96214939,2009.5,2009.0,7.55783765]
[1772611987574,9.43622967,2010.0,2009.0,7.55783765]
[1772611987575,5.03019186,2010.0,2009.0,7.55783765]
[1772611987776,0.27159006,2009.8,2009.0,7.55783765]
[1772611988475,0.17897845,2009.8,2009.2,1.23696116]
[1772611989196,0.002,2009.3,2009.0,8.80223719]
[1772611989865,0.17897845,2009.8,2009.0,8.80223719]
[1772611989866,0.17897845,2009.8,2009.1,6.32087649]
[1772611990292,0.17897845,2009.8,2009.2,1.23696116]
[1772611990492,2.93296116,2010.5,2009.6,1.23696116]
[1772611990493,5.90165514,2010.3,2009.6,1.23696116]
[1772611990983,1.696,2010.5,2009.6,1.23696116]
[1772611991296,7.59765514,2010.5,2009.6,2.48098798]
[1772611991494,5.90165514,2010.6,2009.7,6.32087649]
[1772611991683,5.90165514,2010.6,2009.4,8.80198932]
[1772611991994,7.1386163,2010.5,2009.2,1.24424152]
[1772611992182,5.90165514,2010.5,2009.3,1.23696116]
[1772611992384,5.90165514,2010.8,2009.7,6.32087649]
[1772611993379,5.90165514,2010.8,2009.7,7.56483705]
[1772611993701,2.52464727,2011.0,2010.0,7.55783765]
[1772611994378,5.90365514,2011.1,2010.2,7.55783765]
[1772611995422,0.002,2011.1,2010.4,7.55783765]
[1772611995583,0.002,2011.1,2010.5,7.55783765]
[1772611995907,0.002,2011.3,2010.7,1.23696116]
[1772611996075,0.002,2011.3,2010.5,7.55783765]
[1772611996510,5.90365514,2011.3,2010.4,1.42312181]
[1772611996880,0.002,2011.3,2010.4,8.98095946]
[1772611998079,0.002,2011.3,2010.4,10.2244827]
[1772611998400,0.002,2011.5,2011.0,1.23696116]
[1772611999274,0.002,2011.5,2010.6,6.33073576]
[1772611999492,0.002,2011.5,2010.8,1.23696116]
[1772612000076,5.87890924,2011.5,2010.3,6.33073576]
[1772612000399,5.87890924,2011.5,2010.0,7.56769692]
[1772612000400,5.87690924,2011.3,2010.0,7.56769692]
[1772612000581,9.72351092,2011.2,2010.0,7.56769692]
[1772612000913,2.94428285,2011.1,2010.0,7.56769692]
[1772612001112,2.94428285,2011.1,2010.0,9.11569692]
[1772612001419,2.94428285,2011.1,2009.6,4.97610647]
[1772612001420,6.31871189,2010.0,2008.7,0.001]
[1772612001613,3.04549433,2009.9,2008.8,7.21667665]
[1772612001795,2.94428285,2009.8,2008.8,5.97971549]
[1772612001979,5.22257453,2010.3,2008.9,7.21667665]
[1772612002309,6.48568825,2010.2,2008.9,7.21667665]
[1772612002505,6.31871189,2010.0,2008.7,0.001]
[1772612002709,2.95111372,2009.9,2008.9,1.23696116]
[1772612003088,2.95111372,2009.8,2008.9,1.23696116]
[1772612003286,2.95111372,2009.7,2008.9,1.23696116]
[1772612003491,2.95111372,2009.6,2009.0,1.24440019]
[1772612003687,3.53457453,2010.2,2009.2,1.23696116]
[1772612003889,2.95176036,2010.1,2009.0,1.24440019]
[1772612004110,2.95176036,2010.0,2009.0,1.24440019]
[1772612004310,2.95176036,2009.9,2008.9,8.46110527]
[1772612004615,2.95176036,2009.8,2009.2,1.23696116]
[1772612004823,3.53457453,2010.3,2009.4,1.23696116]
[1772612004983,2.95247711,2010.2,2009.4,1.23696116]
[1772612005190,2.95247711,2010.1,2009.4,1.23696116]
[1772612005507,2.95247711,2010.0,2009.4,1.23696116]
[1772612005707,2.95247711,2009.9,2009.4,2.48105363]
[1772612005909,9.85328642,2010.4,2009.2,7.75896977]
[1772612005910,6.31871189,2010.4,2009.2,7.75896977]
[1772612006219,2.95419642,2010.3,2009.4,1.23696116]
[1772612006439,2.95419642,2010.2,2009.6,1.23696116]
[1772612006717,2.95419642,2010.1,2009.3,1.73308698]
[1772612006906,6.31871189,2010.4,2009.3,1.73308698]
[1772612006907,2.95419642,2010.0,2009.3,1.73308698]
[1772612007107,6.31871189,2010.4,2009.3,1.73308698]
[1772612007309,2.95536548,2010.3,2009.3,1.73308698]
[1772612007511,2.95536548,2010.2,2009.3,1.73308698]
[1772612007709,2.95536548,2010.1,2009.2,8.76899181]
[1772612007883,2.95536548,2010.0,2009.2,8.76899181]
[1772612008214,6.31871189,2010.3,2009.3,1.545]
[1772612008515,2.9566476,2010.2,2009.4,1.545]
[1772612008819,6.31871189,2010.3,2009.4,1.545]
[1772612008820,2.9566476,2010.1,2009.4,1.545]
[1772612008998,2.9566476,2010.0,2009.4,1.545]
[1772612009200,3.53457453,2010.4,2009.5,5.97971549]
[1772612009395,9.85328642,2010.5,2009.6,1.545]
[1772612009995,6.31871189,2010.5,2009.5,1.24407092]
[1772612010206,6.31871189,2010.5,2009.6,1.545]
[1772612011132,6.31871189,2010.4,2009.6,1.545]
[1772612012423,6.31871189,2010.4,2009.1,9.95215296]
[1772612012424,6.31871189,2010.4,2009.5,1.545]
[1772612013629,0.46242644,2010.3,2009.5,1.545]
[1772612013828,0.46242644,2010.2,2009.2,1.24427632]
[1772612014131,6.78113833,2010.1,2009.3,1.545]
[1772612014333,0.46242644,2010.0,2009.3,1.545]
[1772612014702,0.46242644,2010.0,2009.3,2.78920603]
[1772612014902,9.85328642,2010.4,2009.8,0.001]
[1772612015098,6.78119007,2010.3,2009.8,0.001]
[1772612015404,6.31871189,2010.1,2009.5,1.546]
[1772612015622,0.46247818,2010.0,2009.5,1.546]
[1772612017416,0.46247818,2010.0,2009.6,1.544]
[1772612017620,0.46247818,2010.0,2009.5,0.001]
[1772612017811,1.16752558,2010.0,2009.6,1.544]
[1772612018313,3.53457453,2010.3,2009.6,2.78801966]
[1772612018633,9.85328642,2010.2,2009.5,0.001]
[1772612018818,6.31871189,2010.2,2009.5,0.001]
[1772612019199,9.85328642,2010.2,2009.5,0.001]
[1772612019528,6.31871189,2010.1,2009.5,0.001]
[1772612019704,6.31871189,2010.1,2009.5,1.545]
[1772612021333,2.9633424,2010.0,2009.5,1.545]
[1772612021506,2.9633424,2009.9,2009.5,1.545]
[1772612021708,2.9633424,2009.8,2009.5,1.545]
[1772612021908,2.9633424,2009.7,2009.5,1.544]
[1772612022111,6.31871189,2010.1,2009.5,1.544]
[1772612022315,2.96324944,2010.0,2009.5,1.544]
[1772612022526,2.96324944,2009.9,2009.5,1.544]
[1772612022715,2.96324944,2009.8,2009.5,1.544]
[1772612022920,2.96324944,2009.7,2009.5,1.544]
[1772612023122,2.96335513,2009.6,2009.5,0.001]
[1772612024307,2.96335513,2009.6,2009.4,0.981457]
[1772612024619,2.96335513,2009.5,2009.4,0.981457]
[1772612024817,2.96335513,2009.8,2009.4,0.981457]
[1772612025044,2.96335513,2009.7,2009.4,0.981457]
[1772612025204,2.96335513,2009.6,2009.4,0.981457]
[1772612025403,2.96335513,2009.5,2009.4,0.981457]
[1772612025607,2.96335513,2009.8,2009.4,0.981457]
[1772612025903,2.96335513,2009.7,2009.4,0.981457]
[1772612026107,3.53457453,2010.1,2009.4,0.981457]
[1772612026108,2.96335513,2009.6,2009.4,0.981457]
[1772612026339,3.53457453,2010.1,2009.4,0.981457]
[1772612026642,2.96364216,2010.0,2009.5,5.97971549]
[1772612026809,9.85328642,2010.4,2009.5,5.97971549]
[1772612027245,6.31871189,2010.4,2009.5,5.97971549]
[1772612027619,6.31871189,2010.4,2009.6,0.001]
[1772612027933,0.002,2009.9,2009.6,0.001]
[1772612028110,6.31871189,2010.4,2009.6,0.001]
[1772612028307,3.53457453,2010.6,2009.6,3.88574803]
[1772612028518,10.57406484,2010.7,2009.9,5.128591]
[1772612028519,6.21124945,2010.7,2009.9,5.128591]
[1772612028721,6.21124945,2010.7,2010.0,1.542]
[1772612029026,6.21124945,2011.0,2010.1,1.73308698]
[1772612029228,3.53457453,2011.0,2010.2,3.88474803]
[1772612029537,3.53457453,2011.2,2010.2,3.88474803]
[1772612029917,0.46388508,2011.1,2010.2,3.88474803]
[1772612030120,0.46388508,2011.0,2010.2,3.88474803]
[1772612030339,0.46388508,2010.9,2010.3,1.73308698]
[1772612030540,9.74782398,2011.3,2010.5,5.1282198]
[1772612030845,0.46420851,2011.2,2010.6,1.541]
[1772612031029,0.46420851,2011.1,2010.6,1.541]
[1772612031234,0.46420851,2011.0,2010.6,1.541]
[1772612031429,0.002,2011.3,2010.6,7.15883501]
[1772612031632,0.002,2011.3,2010.7,3.88474803]
[1772612031941,0.46398903,2011.2,2010.8,1.541]
[1772612032143,0.46398903,2011.1,2010.4,3.88474803]
[1772612032336,0.46398903,2011.0,2010.5,1.541]
[1772612032535,6.21124945,2011.2,2010.2,5.12836505]
[1772612032744,0.46372746,2011.1,2010.3,1.541]
[1772612032946,0.46372746,2011.0,2010.3,1.541]
[1772612033145,6.21124945,2011.2,2010.3,1.541]
[1772612033345,0.46352782,2011.1,2010.2,5.12836505]
[1772612033541,0.46352782,2011.0,2010.3,1.541]
[1772612033749,6.21124945,2011.2,2010.3,1.541]
[1772612033952,6.67477833,2011.1,2010.4,1.541]
[1772612034148,0.46352888,2011.0,2010.4,1.541]
[1772612034349,0.46352888,2011.0,2010.0,2.97683919]
[1772612034350,6.67477833,2011.0,2010.5,1.541]
[1772612034531,6.21124945,2011.0,2010.5,1.541]
[1772612034848,6.21324945,2011.3,2010.5,1.541]
[1772612035052,0.46340821,2011.2,2010.5,1.541]
[1772612035236,0.46340821,2011.1,2010.5,2.78446622]
[1772612035439,0.46340821,2011.0,2010.5,2.78445621]
[1772612035753,6.21324945,2011.3,2010.6,1.73308698]
[1772612036137,0.002,2011.3,2010.6,1.73308698]
[1772612036351,0.002,2011.3,2010.6,5.61783501]
[1772612036559,0.002,2011.3,2010.6,6.86121257]
[1772612037353,0.002,2011.5,2010.9,1.73308698]
[1772612038234,6.21324945,2011.5,2010.5,2.97651781]
[1772612038552,6.21324945,2011.5,2010.6,1.54]
[1772612038770,2.95894356,2011.4,2010.7,1.54]
[1772612039128,6.21324945,2011.5,2010.7,1.54]
[1772612040653,0.002,2011.5,2010.8,5.12597876]
[1772612041242,0.002,2011.1,2010.8,3.88274803]
[1772612041450,0.002,2011.5,2010.7,1.24331844]
[1772612041757,6.21324945,2011.6,2010.9,1.54]
[1772612041758,5.51398299,2011.6,2010.9,1.54]
[1772612042544,0.002,2011.8,2011.0,1.2431626]
[1772612042751,2.95688271,2011.8,2011.0,1.2431626]
[1772612044139,0.002,2011.8,2011.0,1.2431626]
[1772612044836,6.21324945,2011.8,2011.0,1.2431626]
[1772612045040,6.21324945,2011.8,2010.8,2.97634361]
[1772612045245,6.21324945,2011.8,2010.9,1.539]
[1772612045659,6.21324945,2011.8,2010.9,4.58001449]
[1772612045861,6.21324945,2011.8,2011.0,1.539]
[1772612046939,6.21324945,2011.8,2010.7,1.24333887]
[1772612047148,6.21124945,2011.6,2010.3,5.82457625]
[1772612047458,6.21124945,2011.3,2010.4,1.539]
[1772612047638,6.21124945,2010.9,2010.4,1.539]
[1772612047851,6.21124945,2010.9,2010.5,1.539]
[1772612048044,6.21124945,2011.3,2010.5,1.539]
[1772612048241,3.41439045,2011.2,2010.5,1.539]
[1772612048451,6.21124945,2011.3,2010.5,1.539]
[1772612048857,6.21124945,2011.3,2010.6,1.24340992]
[1772612049052,2.03195067,2011.2,2010.4,7.83384573]
[1772612049351,2.03195067,2011.2,2010.5,7.63975875]
[1772612050155,2.03195067,2011.2,2010.6,1.539]
[1772612050955,2.03195067,2011.2,2010.6,2.78235383]
[1772612051667,2.03195067,2011.2,2010.5,7.34418219]
[1772612051968,2.03195067,2011.2,2010.6,1.539]
[1772612052264,2.03195067,2011.2,2010.5,7.34418219]
[1772612052469,2.03195067,2011.2,2010.7,1.539]
[1772612052667,2.03195067,2011.2,2010.5,6.10075875]
[1772612052854,6.21124945,2011.4,2010.6,1.539]
[1772612053052,6.21124945,2011.4,2011.0,0.02]
[1772612053258,6.21124945,2011.4,2011.1,1.539]
[1772612054271,6.21124945,2011.2,2010.8,0.001]
[1772612054455,6.21124945,2011.0,2010.8,0.001]
[1772612054852,2.96152678,2010.9,2010.8,0.001]
[1772612055053,9.63550504,2010.9,2010.8,0.001]
[1772612055377,6.21124945,2010.8,2010.2,1.539]
[1772612055587,3.42425559,2010.7,2010.3,0.002]
[1772612055753,6.21124945,2010.8,2010.3,0.002]
[1772612055754,2.964752,2010.6,2010.3,0.002]
[1772612055951,6.21124945,2010.7,2010.3,1.541]
[1772612056151,2.9647555,2010.6,2010.3,1.541]
[1772612056948,8.57247336,2010.9,2010.3,1.541]
[1772612057148,3.43173653,2010.8,2010.3,1.541]
[1772612057347,3.43173653,2010.7,2010.3,1.541]
[1772612057560,3.43173653,2010.6,2010.3,1.541]
[1772612057762,8.57247336,2010.9,2010.3,1.541]
[1772612057959,3.43404616,2010.8,2010.3,1.541]
[1772612058176,3.43404616,2010.7,2010.3,1.541]
[1772612058476,3.43404616,2010.6,2010.3,0.002]
[1772612058666,2.96999893,2010.5,2010.3,1.54]
[1772612059011,6.35319555,2010.8,2010.3,1.54]
[1772612059176,3.43715379,2010.7,2010.3,1.54]
[1772612059478,3.43715379,2010.6,2010.3,1.54]